bitfinex-derivatives/quotes_ETHF0:USTF0_20250520
["timestamp","ask_amount","ask_price","bid_price","bid_amount"]
[1747746426885,2.15045855,2485.9,2485.8,8.546]
[1747746427382,0.80425,2485.8,2485.7,0.24933418]
[1747746427582,2.15048855,2485.8,2485.7,0.24933418]
[1747746427773,3.50808855,2485.8,2485.7,0.24933418]
[1747746428577,3.50808855,2485.8,2485.6,8.546]
[1747746428578,0.80429,2485.7,2485.6,8.546]
[1747746428782,6.71592855,2485.7,2485.6,8.546]
[1747746429585,5.91163855,2485.7,2485.2,0.24933418]
[1747746429788,0.80438,2485.4,2485.3,9.9378]
[1747746430273,2.15061855,2485.4,2485.3,9.9378]
[1747746430475,0.80437,2485.5,2485.3,11.94959]
[1747746430678,0.80438,2485.4,2485.3,9.9378]
[1747746430885,0.80438,2485.4,2485.3,11.94955]
[1747746431186,0.79773572,2485.4,2485.3,11.94955]
[1747746431481,2.14397427,2485.4,2485.3,9.9378]
[1747746432378,5.35177427,2485.4,2485.3,8.548]
[1747746432583,11.56508855,2485.4,2484.9,0.24933418]
[1747746432883,2.15074855,2485.0,2484.9,0.24933418]
[1747746433079,4.89074855,2485.0,2484.9,0.24933418]
[1747746433276,12.28414855,2485.0,2484.9,0.24933418]
[1747746433483,0.80477,2484.2,2484.1,0.80478]
[1747746433679,0.8048,2484.2,2484.1,2.81755]
[1747746433886,0.8048,2484.2,2484.1,2.01276]
[1747746435182,2.15103855,2484.2,2484.1,2.01276]
[1747746435379,1.34623855,2484.2,2483.9,1.3268]
[1747746435584,0.80484,2484.0,2483.9,1.3268]
[1747746435797,2.71543855,2484.1,2483.9,1.3268]
[1747746436001,4.01856294,2484.4,2483.9,3.33968]
[1747746436301,2.15098855,2484.3,2484.1,0.8048]
[1747746436487,2.15098855,2484.3,2484.2,9.9301]
[1747746436688,2.14075,2484.3,2484.2,8.551]
[1747746436893,3.48698855,2484.3,2484.2,8.551]
[1747746437999,2.68223855,2484.3,2484.2,9.35577]
[1747746438201,0.00603294,2484.4,2484.3,0.80474]
[1747746438401,0.00603294,2484.4,2484.3,2.18384]
[1747746438604,2.15698149,2484.4,2484.3,1.3791]
[1747746438804,3.49298149,2484.4,2484.3,1.3791]
[1747746439306,6.70078149,2484.4,2484.3,1.3791]
[1747746440193,0.80474,2484.3,2484.2,8.551]
[1747746440391,2.15097855,2484.3,2484.2,9.8436]
[1747746442003,3.21383294,2484.4,2484.2,11.85628]
[1747746442200,0.00603294,2484.4,2484.3,2.09734]
[1747746442399,0.00603294,2484.4,2484.3,3.98814]
[1747746442600,0.00603294,2484.4,2484.3,6.00074]
[1747746442805,0.81074294,2484.4,2484.3,5.196]
[1747746443107,0.81074294,2484.4,2484.3,6.00074]
[1747746443693,2.15698149,2484.4,2484.3,6.00074]
[1747746444201,0.00603294,2484.4,2484.3,6.00074]
[1747746445297,1.35227149,2484.4,2484.3,6.00074]
[1747746445498,0.00603294,2484.4,2484.3,6.00074]
[1747746445899,2.15698149,2484.4,2484.3,6.00074]
[1747746446098,0.81074294,2484.4,2484.3,5.9234]
[1747746446400,0.00603294,2484.4,2484.3,6.72814]
[1747746446603,1.35227149,2484.4,2484.3,6.72814]
[1747746446802,0.00603294,2484.4,2484.3,6.72814]
[1747746447396,1.35227149,2484.4,2484.3,6.72814]
[1747746448106,3.2078,2485.0,2484.6,0.80464]
[1747746448306,0.80458,2484.8,2484.7,10.65619]
[1747746448706,0.80457,2484.9,2484.8,0.80457]
[1747746449005,0.80457,2484.9,2484.8,1.3706]
[1747746449205,0.80457,2484.9,2484.8,4.1106]
[1747746449403,0.80457,2484.9,2484.8,6.12279499]
[1747746449602,0.80457,2484.9,2484.8,4.1106]
[1747746449804,0.80457,2484.9,2484.8,6.12279499]
[1747746450004,0.80457,2484.9,2484.8,4.1106]
[1747746450199,2.816765,2484.9,2484.8,4.1106]
[1747746450899,2.816765,2484.9,2484.8,2.74]
[1747746451100,0.80457,2484.9,2484.8,0.80458]
[1747746451307,0.80457,2484.9,2484.8,1.3706]
[1747746451702,3.2078,2485.0,2484.9,0.80455]
[1747746451703,4.01232,2485.0,2484.9,0.80455]
[1747746451903,4.01232,2485.0,2484.9,1.0054]
[1747746452103,4.01232,2485.0,2484.9,7.028615]
[1747746452406,6.024435,2485.0,2484.9,5.0165]
[1747746452707,5.30202,2485.0,2484.9,5.0165]
[1747746453109,5.30202,2485.0,2484.9,2.2765]
[1747746455607,4.01232,2485.0,2484.9,3.08105]
[1747746455907,0.00603294,2485.1,2484.9,4.288615]
[1747746456105,0.00603294,2485.1,2485.0,0.80451]
[1747746456309,0.00603294,2485.1,2485.0,2.16391]
[1747746456499,0.00603294,2485.1,2485.0,4.17594]
[1747746456704,0.81051294,2485.1,2485.0,4.17594]
[1747746456904,0.80164921,2485.1,2485.0,4.17594]
[1747746457104,0.80164921,2485.1,2485.0,6.91594]
[1747746458017,0.80448,2485.1,2485.0,6.91592]
[1747746459701,0.80447,2485.2,2485.0,6.11143]
[1747746459905,0.80447,2485.2,2485.1,9.35347]
[1747746460107,3.21383294,2485.3,2485.1,8.549]
[1747746460307,0.00603294,2485.3,2485.2,2.18985]
[1747746460712,0.00603294,2485.3,2485.2,4.20172]
[1747746462210,0.81045294,2485.3,2485.2,3.39727]
[1747746462415,0.81045294,2485.3,2485.2,10.55987]
[1747746462610,0.81045294,2485.3,2485.2,11.05355643]
[1747746462911,0.81045294,2485.3,2485.2,9.04168643]
[1747746463107,2.82232294,2485.3,2485.2,9.04168643]
[1747746464322,2.82232294,2485.3,2485.2,8.548]
[1747746465118,6.03012294,2485.3,2485.2,8.548]
[1747746466606,6.03012294,2485.3,2485.2,10.55987]
[1747746466813,6.03012294,2485.3,2485.2,11.36432]
[1747746466814,3.21383294,2485.3,2485.2,11.36432]
[1747746467113,4.01213,2485.6,2485.5,0.80435]
[1747746467315,4.01213,2485.6,2485.5,2.011625]
[1747746467718,0.80435,2485.5,2485.4,0.80436]
[1747746467919,2.12385,2485.5,2485.4,3.1485201]
[1747746468226,2.12385,2485.5,2485.4,5.0841601]
[1747746468521,2.12385,2485.5,2485.4,11.6204901]
[1747746469524,2.12385,2485.5,2485.4,11.288]
[1747746469720,2.12385,2485.5,2485.4,14.10409]
[1747746469721,1.3195,2485.5,2485.4,14.10409]
[1747746469918,4.01213,2485.6,2485.5,0.80435]
[1747746470120,4.01213,2485.6,2485.5,2.11745]
[1747746470317,6.023755,2485.6,2485.5,3.05075]
[1747746470517,5.39653,2485.6,2485.5,3.05075]
[1747746470720,4.5922,2485.6,2485.5,3.05075]
[1747746471124,4.5922,2485.6,2485.5,5.79075]
[1747746471826,3.2078,2485.6,2485.5,7.802375]
[1747746472231,4.01212,2485.6,2485.5,7.802375]
[1747746472826,3.2078,2485.6,2485.5,7.802375]
[1747746473328,4.01212,2485.6,2485.5,6.998025]
[1747746473627,5.41032,2485.6,2485.5,6.998025]
[1747746474325,3.2078,2485.6,2485.5,6.998025]
[1747746474529,4.01212,2485.6,2485.5,5.684925]
[1747746475014,6.023745,2485.6,2485.5,3.6733]
[1747746476024,6.023745,2485.6,2485.5,2.74]
[1747746476227,0.80441,2485.5,2485.4,0.3324901]
[1747746476426,2.08141,2485.5,2485.4,0.3324901]
[1747746476619,9.09312,2485.5,2485.4,0.3324901]
[1747746477128,11.83312,2485.5,2485.4,0.3324901]
[1747746477830,0.80451,2485.2,2485.1,8.547]
[1747746478024,4.01231,2485.2,2485.1,8.547]
[1747746478225,0.80454,2485.1,2485.0,0.3324901]
[1747746478427,2.08154,2485.1,2485.0,8.8754901]
[1747746478732,5.02917,2485.1,2485.0,8.8754901]
[1747746479319,4.22463,2485.1,2485.0,9.6800701]
[1747746479524,3.2078,2485.6,2485.2,2.01129]
[1747746479727,0.00603294,2485.7,2485.6,0.80438]
[1747746479932,0.00603294,2485.7,2485.6,14.567725]
[1747746480324,2.37846852,2485.9,2485.8,0.80432]
[1747746480726,2.37846852,2485.9,2485.8,2.81570499]
[1747746481237,2.37846852,2485.9,2485.8,4.75138499]
[1747746481431,0.80429,2485.9,2485.8,5.37126666]
[1747746481628,2.12049,2485.9,2485.8,6.73826666]
[1747746482339,2.12049,2485.9,2485.8,7.54258666]
[1747746482529,2.12049,2485.9,2485.8,7.21009656]
[1747746484028,3.2078,2486.0,2485.9,0.80428]
[1747746484226,3.2078,2486.0,2485.9,7.18598724]
[1747746485037,3.2078,2486.0,2485.9,6.897885]
[1747746485931,3.2078,2486.0,2485.9,7.18599402]
[1747746486440,0.00603294,2486.1,2486.0,0.80425]
[1747746486633,0.00603294,2486.1,2485.7,0.3324901]
[1747746486634,2.01065,2486.0,2485.7,0.3324901]
[1747746486834,2.0112,2485.4,2485.0,1.1663637]
[1747746487040,4.01234,2485.1,2485.0,1.1663637]
[1747746487432,6.02437,2485.1,2485.0,1.1663637]
[1747746487832,7.31867,2485.1,2485.0,1.45454238]
[1747746488541,7.31867,2485.1,2485.0,1.1663637]
[1747746489135,7.31867,2485.1,2484.8,8.543]
[1747746489136,0.80461,2484.9,2484.8,8.543]
[1747746489330,6.51413,2485.1,2484.8,8.543]
[1747746489534,0.80461,2484.9,2484.8,8.543]
[1747746489734,6.51413,2485.1,2484.8,8.543]
[1747746489933,0.80461,2484.9,2484.8,8.543]
[1747746490338,0.80461,2484.9,2484.8,10.55519499]
[1747746491640,0.80461,2484.9,2484.8,2.01219499]
[1747746491838,0.80461,2484.9,2484.8,8.544]
[1747746492045,0.80467,2484.7,2484.6,2.94e-06]
[1747746492240,4.01247,2484.7,2484.6,2.94e-06]
[1747746492547,0.80497,2483.8,2483.7,8.544]
[1747746492739,0.805,2483.7,2483.6,1.3878]
[1747746492938,2.084,2483.7,2483.6,9.9318]
[1747746493142,2.084,2483.7,2483.6,11.944965]
[1747746493343,1.279,2483.7,2483.6,12.749995]
[1747746493839,0.81098294,2483.9,2483.6,11.944965]
[1747746494046,0.00603294,2483.9,2483.7,2.19278]
[1747746494246,0.81096294,2483.9,2483.8,1.3878]
[1747746494941,0.81096294,2483.9,2483.8,3.400805]
[1747746495142,0.00603294,2483.9,2483.8,3.400805]
[1747746495441,0.00603294,2483.9,2483.8,6.140805]
[1747746495641,0.00603294,2483.9,2483.8,6.945775]
[1747746495949,0.00603294,2483.9,2483.8,11.945775]
[1747746496139,0.00603294,2483.9,2483.8,15.153575]
[1747746496338,3.2078,2484.5,2483.8,14.348605]
[1747746496637,3.2078,2484.5,2484.4,0.80477]
[1747746496840,0.64884582,2484.8,2484.6,0.80468]
[1747746497039,0.64884582,2484.8,2484.7,1.3608]
[1747746497242,0.64884582,2484.8,2484.7,3.373075]
[1747746497744,0.64884582,2484.8,2484.7,4.177745]
[1747746498342,4.5936,2484.9,2484.8,0.80464]
[1747746498544,3.2078,2484.9,2484.8,9.35064]
[1747746498744,3.2078,2484.9,2484.8,12.65063499]
[1747746499144,3.2078,2484.9,2484.8,15.39063499]
[1747746500438,3.2078,2484.9,2484.8,11.286]
[1747746500635,7.401505,2484.9,2484.8,11.286]
[1747746500837,6.596895,2484.9,2484.8,11.286]
[1747746501246,6.596895,2484.9,2484.8,8.546]
[1747746502746,6.596895,2484.9,2484.8,9.35064]
[1747746502949,6.596895,2484.9,2484.8,8.546]
[1747746503248,3.2078,2484.9,2484.8,11.36283499]
[1747746504247,3.2078,2484.9,2484.8,14.10283499]
[1747746504447,3.2078,2484.9,2484.8,4.75219499]
[1747746504649,3.2078,2484.9,2484.8,2.74]
[1747746504950,7.394105,2484.9,2484.8,11.286]
[1747746505138,7.394105,2484.9,2484.8,8.546]
[1747746505343,6.589495,2484.9,2484.8,8.546]
[1747746505755,7.394105,2484.9,2484.8,8.546]
[1747746506351,6.589495,2484.9,2484.8,8.546]
[1747746506751,7.394105,2484.9,2484.8,8.546]
[1747746507548,6.589495,2484.9,2484.8,8.546]
[1747746507751,7.394105,2484.9,2484.8,8.546]
[1747746508046,6.589495,2484.9,2484.6,1.2825]
[1747746508253,7.394105,2484.9,2484.8,8.539]
[1747746508453,5.38191,2484.9,2484.8,8.539]
[1747746508656,7.394105,2484.9,2484.8,8.539]
[1747746515264,7.394105,2484.9,2484.8,9.9311]
[1747746515469,6.589495,2484.9,2484.8,9.9311]
[1747746515967,6.589495,2484.9,2484.8,10.73574]
[1747746515968,3.2078,2484.9,2484.8,10.73574]
[1747746516174,3.2078,2484.9,2484.8,15.48793499]
[1747746516469,3.2078,2484.9,2484.8,15.57279976]
[1747746517971,3.2078,2484.9,2484.8,20.57279976]
[1747746518171,3.2078,2484.9,2484.8,21.07073669]
[1747746518369,0.00603294,2485.0,2484.9,0.80461]
[1747746518565,0.00603294,2485.0,2484.9,3.06311]
[1747746518862,0.00603294,2485.0,2484.9,5.075225]
[1747746519274,0.00603294,2485.0,2484.9,7.815225]
[1747746520073,0.00603294,2485.0,2484.9,8.14804476]
[1747746521473,0.00603294,2485.0,2484.9,16.68704476]
[1747746523070,0.81061294,2485.0,2484.9,15.88243476]
[1747746523266,6.03052794,2485.0,2484.9,11.61181976]
[1747746523976,7.30742794,2485.0,2484.9,11.61181976]
[1747746524176,7.30742794,2485.0,2484.9,8.87181976]
[1747746524577,7.30742794,2485.0,2484.9,8.539]
[1747746526172,7.30742794,2485.0,2484.9,8.87181976]
[1747746527676,5.29531294,2485.0,2484.9,8.87181976]
[1747746527981,7.30742794,2485.0,2484.9,9.19370397]
[1747746528681,6.50284794,2485.0,2484.9,9.99831397]
[1747746529477,6.50284794,2485.0,2484.9,11.37901397]
[1747746529681,6.50284794,2485.0,2484.9,10.57440397]
[1747746529980,7.30742794,2485.0,2484.9,10.57440397]
[1747746530179,5.29531294,2485.0,2484.9,10.24158421]
[1747746530782,5.29531294,2485.0,2484.9,8.86088421]
[1747746531079,5.29531294,2485.0,2484.9,9.15307563]
[1747746531682,7.30742794,2485.0,2484.9,9.15307563]
[1747746533987,7.30742794,2485.0,2484.9,9.15383217]
[1747746535678,7.30742794,2485.0,2484.9,9.15384741]
[1747746537187,5.29531294,2485.0,2484.9,9.15385034]
[1747746537384,7.30742794,2485.0,2484.9,9.15385034]
[1747746538189,3.21383294,2485.0,2484.9,13.34787534]
[1747746538382,3.2078,2485.0,2484.9,14.22757534]
[1747746538587,2.82155933,2485.0,2484.9,14.22757534]
[1747746539084,2.82155933,2485.0,2484.9,16.96757534]
[1747746539292,2.33877201,2485.0,2484.9,16.96757534]
[1747746539684,2.33877201,2485.0,2484.9,17.05244011]
[1747746539993,3.21383294,2485.2,2485.1,0.80455]
[1747746540178,3.21383294,2485.2,2485.1,0.29296613]
[1747746540486,4.01834294,2485.2,2485.1,2.30491612]
[1747746540686,0.80455,2485.1,2485.0,3.6477]
[1747746540987,2.12855,2485.1,2485.0,3.94066963]
[1747746541187,2.12855,2485.1,2485.0,3.21269963]
[1747746541884,4.14058,2485.1,2485.0,1.20066963]
[1747746542085,4.14058,2485.1,2485.0,8.81996963]
[1747746542291,4.14058,2485.1,2485.0,9.47570001]
[1747746542479,4.14058,2485.1,2485.0,0.94870001]
[1747746542682,4.14058,2485.1,2485.0,9.47570001]
[1747746543790,3.33603,2485.1,2485.0,10.28032737]
[1747746543989,4.14058,2485.1,2485.0,9.39223751]
[1747746544191,4.14058,2485.1,2485.0,10.19681751]
[1747746544382,4.14058,2485.1,2485.0,9.39223751]
[1747746544780,4.14058,2485.1,2485.0,0.86523751]
[1747746545184,4.14058,2485.1,2485.0,0.57222052]
[1747746545385,4.14058,2485.1,2485.0,0.86525389]
[1747746546596,4.0231,2484.9,2484.4,0.66422735]
[1747746546794,0.8048,2484.3,2484.2,0.83067665]
[1747746546989,7.81748,2484.3,2484.2,0.83067665]
[1747746547189,10.55748,2484.3,2484.2,0.83067665]
[1747746547393,2.0121,2484.2,2483.8,8.527]
[1747746547589,0.80493,2483.9,2483.8,8.53303294]
[1747746548089,0.9543,2484.2,2484.0,0.80487]
[1747746548292,2.15517,2484.1,2483.9,2.97211]
[1747746548596,1.75914,2484.2,2484.1,0.80487]
[1747746548990,1.75914,2484.2,2484.1,2.81763]
[1747746549197,1.75914,2484.2,2484.1,2.01276]
[1747746549590,1.75914,2484.2,2484.1,0.80487]
[1747746549791,0.80482,2484.3,2484.2,0.80484]
[1747746550093,4.16777,2484.4,2484.3,0.8048]
[1747746550486,4.16777,2484.4,2484.3,2.0739]
[1747746550686,4.16777,2484.4,2484.3,1.2691]
[1747746550885,3.36298,2484.4,2484.3,1.2691]
[1747746551088,4.16775,2484.4,2484.3,1.2691]
[1747746551294,0.8048,2484.3,2484.2,8.528]
[1747746551483,2.1475,2484.3,2484.1,0.80486]
[1747746551689,0.80488,2484.1,2483.9,1.8145]
[1747746551889,0.80488,2484.1,2484.0,8.528]
[1747746552094,0.8049,2484.0,2483.9,0.8786]
[1747746552297,0.80493,2483.9,2483.8,8.53403294]
[1747746552685,2.817935,2483.9,2483.8,8.53403294]
[1747746552889,4.112435,2483.9,2483.8,8.53403294]
[1747746553300,4.112435,2483.9,2483.8,0.00603294]
[1747746556493,9.112435,2483.9,2483.8,0.00603294]
[1747746556698,9.112435,2483.9,2482.9,1.16349676]
[1747746556699,2.01268,2483.5,2482.9,1.16349676]
[1747746556902,0.80526,2482.9,2482.8,9.8874]
[1747746557198,3.2078,2483.2,2482.8,13.0952]
[1747746557498,4.5967,2483.2,2483.1,0.80519]
[1747746557799,1.3889,2483.2,2483.1,0.80519]
[1747746557998,3.40247,2483.2,2483.1,0.80519]
[1747746558299,0.00603294,2483.4,2483.3,0.80513]
[1747746558792,2.01944294,2483.4,2483.3,0.80513]
[1747746558993,0.00603294,2483.4,2483.3,2.19773]
[1747746559193,0.00603294,2483.4,2483.3,4.93773]
[1747746560492,0.00603294,2483.4,2483.3,6.95114]
[1747746562197,0.9087,2484.3,2484.1,0.80485]
[1747746562392,3.08983,2484.3,2484.1,0.80485]
[1747746562595,4.29772,2484.3,2484.2,0.80484]
[1747746562795,3.38902,2484.3,2484.2,2.236]
[1747746562996,4.19382,2484.3,2484.2,0.9316]
[1747746563198,3.38902,2484.3,2484.2,1.73644]
[1747746563399,3.38902,2484.3,2484.2,3.04084]
[1747746563799,2.01272,2484.3,2484.2,3.04084]
[1747746564096,3.2078,2484.4,2484.3,0.8048]
[1747746564302,0.00603294,2484.5,2484.4,0.80477]
[1747746564497,0.00603294,2484.5,2484.4,1.75607]
[1747746564699,0.00603294,2484.5,2484.4,3.76859]
[1747746564899,0.64884582,2484.7,2484.6,0.80471]
[1747746565096,0.64884582,2484.7,2484.6,17.54351]
[1747746565297,0.64884582,2484.7,2484.6,19.555865]
[1747746565799,0.64884582,2484.7,2484.6,19.87774374]
[1747746566000,3.46588083,2484.7,2484.6,8.85287874]
[1747746566405,2.81703501,2484.7,2484.6,8.85287874]
[1747746566903,4.09543501,2484.7,2484.6,8.85287874]
[1747746567105,3.29075501,2484.7,2484.6,9.65758874]
[1747746567403,3.21383294,2484.9,2484.8,0.80465]
[1747746567904,0.00603294,2484.9,2484.8,0.80465]
[1747746568105,2.01822794,2484.9,2484.8,2.14715]
[1747746568304,2.01822794,2484.9,2484.6,8.531]
[1747746568509,0.80481,2484.3,2484.2,8.52303294]
[1747746569501,0.80479,2484.4,2484.2,8.52303294]
[1747746569702,1.3198,2484.3,2484.2,8.52303294]
[1747746570309,1.3198,2484.3,2484.2,9.64983185]
[1747746570707,3.33248,2484.3,2484.2,9.64983185]
[1747746571008,1.3198,2484.3,2484.2,9.64983185]
[1747746571198,3.33248,2484.3,2484.2,9.64983185]
[1747746571404,1.3198,2484.3,2484.2,9.64983185]
[1747746571598,3.33248,2484.3,2484.2,9.64983185]
[1747746574505,0.80477,2484.5,2484.3,0.80479]
[1747746574811,4.01249,2484.7,2484.3,3.37202]
[1747746575009,5.29139,2484.7,2484.6,0.80471]
[1747746575213,5.29139,2484.7,2484.6,9.32071]
[1747746575713,5.29139,2484.7,2484.6,8.516]
[1747746575911,5.29139,2484.7,2484.6,9.32071]
[1747746576305,7.30374501,2484.7,2484.6,9.32071]
[1747746576506,7.30374501,2484.7,2484.6,8.516]
[1747746577513,0.80471,2484.6,2484.5,9.32074]
[1747746577713,2.17571,2484.6,2484.5,9.32074]
[1747746577914,4.188145,2484.6,2484.5,9.32074]
[1747746579415,4.188145,2484.6,2484.5,9.64268314]
[1747746579618,4.188145,2484.6,2484.5,8.83794314]
[1747746582015,4.188145,2484.6,2484.5,9.64268314]
[1747746583307,4.188145,2484.6,2484.5,8.83794314]
[1747746583508,4.188145,2484.6,2484.5,9.64268314]
[1747746586016,2.17571,2484.6,2484.5,11.65511814]
[1747746586217,0.80471,2484.6,2484.5,11.65511814]
[1747746586619,3.2078,2484.7,2484.6,0.80471]
[1747746586826,3.2078,2484.7,2484.6,2.98171]
[1747746587117,4.01248,2484.7,2484.6,3.86191]
[1747746587312,5.41358,2484.7,2484.6,3.0572]
[1747746587520,5.41358,2484.7,2484.6,2.892555]
[1747746588320,0.80471,2484.6,2484.5,8.83794314]
[1747746588521,2.20581,2484.6,2484.5,8.83794314]
[1747746588719,4.218245,2484.6,2484.5,8.83794314]
[1747746588921,4.218245,2484.6,2484.5,8.516]
[1747746590015,4.218245,2484.6,2484.5,9.32075]
[1747746590216,4.218245,2484.6,2484.5,9.64268193]
[1747746590925,4.218245,2484.6,2484.5,8.83793193]
[1747746592419,4.218245,2484.6,2484.5,9.64268193]
[1747746593527,4.218245,2484.6,2484.5,10.05975112]
[1747746594025,4.218245,2484.6,2484.5,9.25500112]
[1747746594216,4.218245,2484.6,2484.5,10.05975112]
[1747746594420,4.218245,2484.6,2484.5,9.97488635]
[1747746596430,4.218245,2484.6,2484.5,9.64268193]
[1747746598435,4.218245,2484.6,2484.5,10.92618193]
[1747746598632,4.218245,2484.6,2484.4,0.49735975]
[1747746598834,0.80507,2483.5,2483.4,0.20576676]
[1747746599029,4.01287,2483.5,2483.4,6.76e-06]
[1747746599232,11.0262,2483.5,2483.4,6.76e-06]
[1747746599829,12.3908,2483.5,2483.4,6.76e-06]
[1747746600035,0.8052,2483.1,2482.4,8.505]
[1747746600235,4.013,2483.1,2482.4,8.505]
[1747746600429,11.026655,2483.1,2482.4,8.505]
[1747746600641,11.026655,2483.1,2483.0,0.33409258]
[1747746601436,11.026655,2483.1,2483.0,2.58e-06]
[1747746602542,5.221455,2483.1,2482.8,0.00603294]
[1747746602741,1.37063294,2483.3,2482.8,0.00603294]
[1747746602742,0.00603294,2483.3,2483.2,0.80517]
[1747746602933,0.00603294,2483.3,2483.2,9.31017]
[1747746603138,3.2078,2483.7,2483.6,0.80504]
[1747746603434,4.0128,2483.7,2483.6,8.506]
[1747746603631,4.5316,2483.7,2483.6,11.324205]
[1747746603837,3.2078,2483.7,2483.6,16.324205]
[1747746604431,3.2078,2483.7,2483.6,11.324205]
[1747746605633,3.2078,2483.7,2483.6,16.324205]
[1747746607445,3.2078,2483.7,2483.6,11.324205]
[1747746608144,3.2078,2483.7,2483.6,11.57302235]
[1747746608645,1.3437,2484.0,2483.6,11.57302235]
[1747746608646,6.0622,2484.5,2483.6,16.57302235]
[1747746608847,1.3437,2484.3,2483.8,5.22023]
[1747746609046,2.14853,2484.3,2483.9,1.2747]
[1747746609246,0.80484,2484.2,2484.1,0.80485]
[1747746609439,1.3437,2484.3,2484.2,0.80484]
[1747746609749,0.00603294,2484.5,2484.4,0.80478]
[1747746609940,0.00603294,2484.5,2484.4,9.31078]
[1747746610139,0.00603294,2484.5,2484.4,14.0633]
[1747746611346,2.82329294,2484.5,2484.4,2.74]
[1747746611546,6.03109294,2484.5,2484.4,11.246]
[1747746612240,6.03109294,2484.5,2484.4,8.506]
[1747746616152,4.01857294,2484.5,2484.4,8.506]
[1747746616352,4.01858294,2484.5,2484.4,11.3233]
[1747746616554,4.01858294,2484.5,2484.4,12.6744]
[1747746617148,4.01858294,2484.5,2484.4,15.4144]
[1747746617458,3.21383294,2484.5,2484.4,15.4144]
[1747746617655,4.01858294,2484.5,2484.4,15.4144]
[1747746617855,3.21383294,2484.5,2484.4,15.4144]
[1747746619260,4.01858294,2484.5,2484.4,13.25852]
[1747746619558,5.40578294,2484.5,2484.4,13.25852]
[1747746620255,5.40578294,2484.5,2484.4,10.51852]
[1747746620762,5.40578294,2484.5,2484.4,10.60338477]
[1747746621056,7.41830294,2484.5,2484.4,0.08486477]
[1747746621451,7.41830294,2484.5,2484.4,8.58886477]
[1747746621959,7.41830294,2484.5,2484.4,8.504]
[1747746628957,7.41830294,2484.5,2484.4,8.58886477]
[1747746629866,7.41830294,2484.5,2484.4,8.504]
[1747746634160,7.41830294,2484.5,2484.4,8.82597653]
[1747746635969,6.61355294,2484.5,2484.4,9.63075653]
[1747746636169,6.61355294,2484.5,2484.4,12.37075653]
[1747746636369,6.61355294,2484.5,2484.4,13.66785653]
[1747746636564,4.60103294,2484.5,2484.4,13.66785653]
[1747746636971,4.60103294,2484.5,2484.4,15.7652413]
[1747746637267,5.40578294,2484.5,2484.4,13.7527213]
[1747746637568,2.73091174,2484.5,2484.4,15.7652413]
[1747746637769,0.80474,2484.6,2484.5,0.80474]
[1747746637970,0.80474,2484.6,2484.5,3.06384]
[1747746638166,0.80474,2484.6,2484.5,7.816275]
[1747746638473,0.80474,2484.6,2484.5,8.12341955]
[1747746639175,0.80474,2484.6,2484.5,6.00347955]
[1747746639476,0.80474,2484.6,2484.5,6.66027428]
[1747746639673,0.80474,2484.6,2484.5,7.46501428]
[1747746639974,0.80474,2484.6,2484.5,5.45257928]
[1747746640174,0.80474,2484.6,2484.5,7.46501428]
[1747746640574,0.80474,2484.6,2484.5,4.64783928]
[1747746641171,0.80474,2484.6,2484.5,1.90786458]
[1747746641371,2.817175,2484.6,2484.5,0.96396458]
[1747746641773,2.817175,2484.6,2484.5,9.54496458]
[1747746642678,2.817175,2484.6,2484.5,9.46155603]
[1747746642871,2.817175,2484.6,2484.5,9.46157612]
[1747746643072,0.80481,2484.3,2484.2,0.5038167]
[1747746643280,0.80491,2484.0,2483.9,0.66390415]
[1747746643478,4.01271,2484.0,2483.9,0.66390415]
[1747746643668,1.3648,2484.2,2484.1,0.80487]
[1747746643869,1.3648,2484.2,2484.1,9.38587]
[1747746644074,0.9171,2484.5,2484.4,0.80478]
[1747746644276,3.2078,2484.6,2484.5,0.80474]
[1747746644579,3.2078,2484.6,2484.5,9.38574]
[1747746645071,4.01251,2484.6,2484.5,11.398175]
[1747746645377,5.37701,2484.6,2484.5,13.05174]
[1747746647274,5.37701,2484.6,2484.5,10.31174]
[1747746648384,5.37701,2484.6,2484.5,14.38684]
[1747746648693,4.5723,2484.6,2484.5,14.38684]
[1747746648881,3.2078,2484.6,2484.5,16.399275]
[1747746649587,4.01251,2484.6,2484.5,16.399275]
[1747746653187,4.01251,2484.6,2484.5,16.48413977]
[1747746654187,4.01251,2484.6,2484.5,16.399275]
[1747746654387,3.2078,2484.6,2484.5,16.399275]
[1747746655086,0.0039816,2484.8,2484.7,0.80468]
[1747746655280,0.0039816,2484.8,2484.7,3.1152549]
[1747746655482,0.0039816,2484.8,2484.7,8.1152549]
[1747746655784,1.45342582,2485.0,2484.9,0.80462]
[1747746655988,1.45342582,2485.0,2484.9,14.9028349]
[1747746656283,1.45342582,2485.0,2484.9,17.6428349]
[1747746656479,1.45342582,2485.0,2484.9,17.64259405]
[1747746657387,1.45342582,2485.0,2484.9,13.63017405]
[1747746657781,1.45342582,2485.0,2484.9,3.03805905]
[1747746657987,3.46554082,2485.0,2484.9,11.61705905]
[1747746658187,3.46554082,2485.0,2484.9,9.19892633]
[1747746660083,2.816695,2485.0,2484.9,9.19885202]
[1747746660688,2.816695,2485.0,2484.9,9.19885828]
[1747746660987,2.816695,2485.0,2484.9,9.13085828]
[1747746661188,2.816695,2485.0,2484.9,0.6198517]
[1747746662577,2.816695,2485.0,2484.9,0.32186728]
[1747746662785,2.816695,2485.0,2484.9,0.61989045]
[1747746664182,0.80478,2484.4,2484.2,0.00603294]
[1747746664387,0.80481,2484.3,2484.2,0.00603294]
[1747746664593,2.07981,2484.3,2484.2,0.81087294]
[1747746664790,2.07981,2484.3,2484.2,2.82355294]
[1747746664993,2.07981,2484.3,2484.2,2.01871294]
[1747746665789,2.07981,2484.3,2484.2,2.82355294]
[1747746669189,2.07981,2484.3,2484.2,2.01871294]
[1747746669391,2.07981,2484.3,2484.2,2.82355294]
[1747746669786,2.07981,2484.3,2484.2,2.01871294]
[1747746670285,2.07981,2484.3,2484.2,0.00603294]
[1747746670286,4.09249,2484.3,2484.2,0.00603294]